fUSD/lending_fUSD_20241023
["ID","MTS","AMOUNT","RATE_DAILY","PERIOD"]
[340692616,1729687848091,-500.0,0.00052328,120]
[340692617,1729687848101,-500.0,0.00052328,120]
[340692618,1729687848114,-500.0,0.00052328,120]
[340692619,1729687848123,-500.0,0.00052328,120]
[340692620,1729687848133,-500.0,0.00052328,120]
[340692621,1729687848143,-500.0,0.00052328,120]
[340692622,1729687848152,-630.87,0.00052328,120]
[340692623,1729687848162,-1130.18,0.00052328,120]
[340692624,1729687848171,-500.0,0.00052328,120]
[340692625,1729687848181,-500.0,0.00052328,120]
[340692626,1729687848190,-500.0,0.00052328,120]
[340692627,1729687848200,-535.79,0.00052328,60]
[340692628,1729687848209,-641.90163855,0.00052328,120]
[340692629,1729687848218,-500.0,0.00052328,120]
[340692630,1729687848228,-511.66960212,0.00052328,120]
[340692631,1729687848237,-500.0,0.00052328,120]
[340692632,1729687848246,-1232.85,0.00052328,120]
[340692633,1729687848255,-500.0,0.00052328,120]
[340692634,1729687848264,-500.0,0.00052328,120]
[340692635,1729687848273,-481.45059101,0.00052328,120]
[340692636,1729687848284,-500.0,0.00052328,120]
[340692637,1729687848293,-500.0,0.00052328,120]
[340692638,1729687848303,-500.0,0.00052328,120]
[340692639,1729687848312,-500.0,0.00052328,120]
[340692640,1729687848321,-500.0,0.00052328,120]
[340692641,1729687848330,-517.44885809,0.00052328,120]
[340692642,1729687848339,-500.0,0.00052328,120]
[340692643,1729687848348,-500.0,0.00052328,120]
[340692644,1729687848359,-506.42216735,0.00052328,120]
[340692645,1729687848368,-1291.37,0.00052328,120]
[340692646,1729687848378,-500.0,0.00052328,120]
[340692647,1729687848387,-500.0,0.00052328,120]
[340692648,1729687848396,-500.0,0.00052328,120]
[340692649,1729687848405,-1281.33,0.00052328,120]
[340692650,1729687848414,-500.0,0.00052328,120]
[340692651,1729687848423,-500.0,0.00052328,120]
[340692652,1729687848432,-500.0,0.00052328,120]
[340692653,1729687848442,-500.0,0.00052328,120]
[340692654,1729687848451,-510.11,0.00052328,120]
[340692655,1729687848460,-500.0,0.00052328,120]
[340692656,1729687848469,-541.96,0.00052328,120]
[340692657,1729687848478,-500.0,0.00052328,120]
[340692658,1729687848488,-500.0,0.00052328,60]
[340692659,1729687848497,-538.58737746,0.00052328,120]
[340692660,1729687848506,-500.0,0.00052328,120]
[340692661,1729687848515,-4726.0,0.00052328,120]
[340692662,1729687848524,-980.15,0.00052328,120]
[340692663,1729687848534,-500.0,0.00052328,120]
[340692664,1729687848543,-500.0,0.00052328,120]
[340692665,1729687848552,-500.0,0.00052328,120]
[340692666,1729687848561,-500.0,0.00052328,120]
[340692667,1729687848571,-500.0,0.00052328,120]
[340692668,1729687848847,-4011.46,0.00052328,120]
[340692669,1729687848857,-542.38,0.00052328,120]
[340692670,1729687848868,-500.0,0.00052328,120]
[340692671,1729687848877,-515.12480139,0.00052328,120]
[340692672,1729687848886,-500.0,0.00052328,120]
[340692673,1729687848895,-500.0,0.00052328,120]
[340692674,1729687848904,-974.67,0.00052328,120]
[340692675,1729687848913,-737.46,0.00052328,120]
[340692676,1729687848922,-505.26,0.00052328,120]
[340692677,1729687848931,-500.0,0.00052328,120]
[340692678,1729687848941,-596.1,0.00052328,120]
[340692679,1729687848950,-500.0,0.00052328,120]
[340692680,1729687848959,-500.0,0.00052328,120]
[340692681,1729687848968,-500.0,0.00052328,120]
[340692682,1729687848977,-500.0,0.00052328,120]
[340692683,1729687848986,-719.45,0.00052328,120]
[340692684,1729687848995,-500.0,0.00052328,120]
[340692685,1729687849004,-500.0,0.00052328,120]
[340692686,1729687849013,-500.0,0.00052328,120]
[340692687,1729687849022,-638.8,0.00052328,120]
[340692688,1729687849031,-500.0,0.00052328,120]
[340692689,1729687849040,-643.75,0.00052328,120]
[340692690,1729687849049,-533.94111821,0.00052328,120]
[340692691,1729687849058,-500.0,0.00052328,120]
[340692692,1729687849067,-1647.0,0.00052328,120]
[340692693,1729687849076,-500.0,0.00052328,120]
[340692694,1729687849085,-500.0,0.00052328,120]
[340692695,1729687849094,-1277.92,0.00052328,120]
[340692696,1729687849106,-1094.74,0.00052328,120]
[340692697,1729687849117,-500.0,0.00052328,120]
[340692698,1729687849126,-500.0,0.00052328,120]
[340692699,1729687849134,-500.0,0.00052328,120]
[340692700,1729687849143,-500.0,0.00052328,120]
[340692701,1729687849152,-500.0,0.00052328,120]
[340692702,1729687849161,-500.0,0.00052328,120]
[340692703,1729687849170,-500.0,0.00052328,120]
[340692704,1729687849179,-656.79,0.00052328,120]
[340692705,1729687849188,-153.042613,0.00052328,120]
[340692706,1729687849198,-500.0,0.00052328,120]
[340692707,1729687849208,-419.969412,0.00052328,120]
[340692708,1729687849217,-500.0,0.00052328,120]
[340692709,1729687849226,-500.0,0.00052328,120]
[340692710,1729687849235,-500.0,0.00052328,120]
[340692711,1729687849244,-500.0,0.00052328,120]
[340692712,1729687849254,-500.0,0.00052328,120]
[340692713,1729687849264,-500.0,0.00052328,120]
[340692714,1729687849273,-500.0,0.00052328,120]
[340692715,1729687849282,-500.0,0.00052328,120]
[340692716,1729687849292,-500.0,0.00052328,120]
[340692717,1729687849301,-500.0,0.00052328,120]
[340692718,1729687849311,-500.0,0.00052328,120]
[340692719,1729687849320,-358.46317368,0.00052328,120]
[340692720,1729687849613,-500.0,0.00052054,120]
[340692721,1729687849622,-250.36857632,0.00052328,120]
[340692722,1729687849632,-500.0,0.00052328,120]
[340692723,1729687849642,-500.0,0.00052328,120]
[340692724,1729687849651,-500.0,0.00052328,120]
[340692725,1729687849660,-500.0,0.00052328,120]
[340692726,1729687849670,-500.0,0.00052328,120]
[340692727,1729687849679,-500.0,0.00052328,120]
[340692728,1729687849689,-718.08,0.00052328,120]
[340692729,1729687849698,-500.0,0.00052328,120]
[340692730,1729687849708,-500.0,0.00052328,120]
[340692731,1729687849717,-3221.83,0.00052328,120]
[340692732,1729687849727,-500.0,0.00052328,120]
[340692733,1729687849736,-500.0,0.00052328,120]
[340692734,1729687849745,-500.0,0.00052328,120]
[340692735,1729687849754,-500.0,0.00052328,120]
[340692736,1729687849763,-2150.29,0.00052328,120]
[340692737,1729687849773,-500.0,0.00052328,120]
[340692738,1729687849783,-500.0,0.00052328,120]
[340692739,1729687849792,-500.0,0.00052328,120]
[340692740,1729687849801,-500.0,0.00052328,120]
[340692741,1729687849810,-342.5250385,0.00052328,120]
[340692742,1729687849830,-151.0,0.00052318,120]
[340692743,1729687849839,-157.4749615,0.00052328,120]
[340692744,1729687849848,-586.33,0.00052328,120]
[340692745,1729687849857,-483.0748161,0.00052328,120]
[340692746,1729687849872,-16.9251839,0.00052328,120]
[340692747,1729687849881,-500.0,0.00052328,120]
[340692748,1729687849890,-140.3627576,0.00052328,120]
[340692749,1729687849901,-359.6372424,0.00052328,120]
[340692750,1729687849910,-500.0,0.00052328,120]
[340692751,1729687849920,-500.0,0.00052328,120]
[340692752,1729687849929,-34.87281419,0.00052328,7]
[340692753,1729687849940,-1310.48718581,0.00052328,7]
[340692754,1729687849949,-517.14984343,0.00052328,120]
[340692755,1729687849959,-550.97566895,0.00052328,120]
[340692756,1729687849968,-500.0,0.00052328,120]
[340692757,1729687849978,-252.39717104,0.00052328,120]
[340692758,1729687849987,-2819.0709309,0.00052328,120]
[340692759,1729687849998,-910.07126,0.00052328,120]
[340692760,1729687850014,-19862.3478091,0.00052328,120]
[340692761,1729687850023,-523.19631606,0.00052328,120]
[340692762,1729687850033,-1599.11,0.00052328,120]
[340692763,1729687850042,-500.0,0.00052328,120]
[340692764,1729687850051,-500.0,0.00052328,120]
[340692765,1729687850061,-500.0,0.00052328,120]
[340692766,1729687850070,-500.0,0.00052328,120]
[340692767,1729687850080,-500.0,0.00052328,120]
[340692768,1729687850089,-500.0,0.00052328,120]
[340692769,1729687850099,-500.0,0.00052328,120]
[340692770,1729687850113,-500.0,0.00052328,120]
[340692771,1729687850123,-500.0,0.00052328,120]
[340692772,1729687850132,-431.58470874,0.00052328,120]
[340692773,1729687850208,-68.41529126,0.00052328,120]
[340692774,1729687850218,-500.0,0.00052328,120]
[340692775,1729687850229,-1639.09148079,0.00052328,120]
[340692776,1729687850242,-1352.22851921,0.00052328,120]
[340692777,1729687850252,-156.88599428,0.00052328,120]
[340692778,1729687850264,-1891.09879631,0.00052328,120]
[340692779,1729687850277,-337.03520941,0.00052328,120]
[340692780,1729687850287,-500.0,0.00052328,120]
[340692781,1729687850298,-306.94371237,0.00052328,120]
[340692782,1729687850311,-193.05628763,0.00052328,120]
[340692783,1729687850323,-500.0,0.00052328,120]
[340692784,1729687850332,-500.0,0.00052328,120]
[340692785,1729687850341,-500.0,0.00052328,120]
[340692786,1729687850351,-500.0,0.00052328,120]
[340692787,1729687850361,-895.01,0.00052328,120]
[340692788,1729687850370,-500.0,0.00052328,120]
[340692789,1729687850380,-690.94,0.00052328,120]
[340692790,1729687850389,-500.0,0.00052328,120]
[340692791,1729687850398,-500.0,0.00052328,120]
[340692792,1729687850408,-500.0,0.00052328,120]
[340692793,1729687850418,-1473.27,0.00052328,120]
[340692794,1729687850427,-2252.31,0.00052328,120]
[340692795,1729687850436,-500.0,0.00052328,120]
[340692796,1729687850447,-500.0,0.00052328,120]
[340692797,1729687850456,-500.0,0.00052328,120]
[340692798,1729687850466,-3701.33,0.00052328,120]
[340692799,1729687850476,-500.0,0.00052328,120]
[340692800,1729687850501,-197.934534,0.00052328,120]
[340692801,1729687850511,-500.0,0.00052328,120]
[340692802,1729687850520,-1905.47,0.00052328,120]
[340692803,1729687850530,-500.0,0.00052328,120]
[340692804,1729687850540,-672.58,0.00052328,120]
[340692805,1729687850549,-918.99,0.00052328,120]
[340692806,1729687850559,-55.94316334,0.00052328,120]
[340692807,1729687850571,-444.05683666,0.00052328,120]
[340692808,1729687850580,-128.79316334,0.00052328,120]
[340692809,1729687850591,-414.43683666,0.00052328,120]
[340692810,1729687850600,-302.46316334,0.00052328,120]
[340692811,1729687850614,-269.38241397,0.00052328,120]
[340692812,1729687850625,-1089.08442269,0.00052328,120]
[340692813,1729687850635,-722.18,0.00052328,120]
[340692814,1729687850644,-747.88,0.00052328,120]
[340692815,1729687850654,-500.0,0.00052328,120]
[340692816,1729687850663,-500.0,0.00052328,120]
[340692817,1729687850673,-500.0,0.00052328,120]
[340692818,1729687850682,-500.0,0.00052328,120]
[340692819,1729687850691,-500.0,0.00052328,120]
[340692820,1729687850700,-1333.44,0.00052328,120]
[340692821,1729687850710,-510.21,0.00052328,120]
[340692822,1729687850720,-500.0,0.00052328,120]
[340692823,1729687850729,-500.0,0.00052328,120]
[340692824,1729687850739,-8354.69614778,0.00052328,21]
[340692826,1729688101488,195.0,0.00019725,2]
[340692827,1729688101839,150.0,0.0001726,2]
[340692828,1729688143495,150.0,0.0001726,2]
[340692829,1729688148473,158.67,0.00015342,2]
[340692831,1729688341936,300.0,0.00019725,2]
[340692832,1729688403276,438.6382731,0.0001726,2]
[340692833,1729688461708,530.0,0.00040299,30]
[340692834,1729688561639,250.0,0.0001,2]
[340692835,1729688562714,300.0,0.00012,2]
[340692836,1729688590971,194.35,0.0001726,2]
[340692837,1729688644867,163.2,0.00015342,2]
[340692838,1729688718587,169.0,0.0004501,2]
[340692839,1729688741144,-243.46,0.00048537,2]
[340692840,1729688741167,-903.47448188,0.0004858,2]
[340692841,1729688741187,-23.96965624,0.0004868,2]
[340692842,1729688751105,-412.79317139,0.0004868,2]
[340692843,1729688789657,1004.0,0.000158,2]
[340692844,1729688790213,953.0,0.000158,2]
[340692874,1729689031567,-715.79517078,0.0004868,2]
[340692875,1729689031577,-715.79517077,0.00048681,2]
[340692876,1729689031586,-253.3072,0.00048681,2]
[340692877,1729689031595,-794.8893,0.00048681,2]
[340692878,1729689031605,-56.52722673,0.00048681,2]
[340692879,1729689031669,-659.26794404,0.00048681,2]
[340692880,1729689031687,-1068.28,0.00048771,10]
[340692881,1729689031697,-845.02205596,0.00048771,10]
[340692882,1729689031708,-250.0,0.00048771,10]
[340692883,1729689031730,-341.09075,0.00048771,10]
[340692884,1729689031750,-125.51719404,0.00048771,10]
[340692885,1729689031759,-887.48280596,0.0004878,84]
[340692893,1729689037543,-1273.96519404,0.0004878,84]
[340692895,1729689037552,-150.0,0.0004878,4]
[340692897,1729689037562,-1992.92105898,0.00048781,7]
[340692899,1729689037654,-671.58377221,0.00048781,7]
[340692900,1729689037765,-117384.18089381,0.00048781,7]
[340692901,1729689037775,-43827.9885921,0.00048781,7]
[340692902,1729689037785,-207.05,0.00049978,120]
[340692903,1729689037794,-14440.78051409,0.0005,15]
[340692904,1729689037983,-5042.96202616,0.0005,15]
[340692905,1729689037993,-417.10492271,0.0005,120]
[340692906,1729689038002,-252.02853115,0.000501,2]
[340692907,1729689038012,-240.98,0.00050407,120]
[340692908,1729689038021,-250.0,0.00050463,120]
[340692909,1729689038030,-285.6700124,0.00050521,120]
[340692921,1729689039453,-321.1199876,0.00050521,120]
[340692922,1729689039464,-606.79,0.00050521,120]
[340692923,1729689039474,-182.03,0.00050552,2]
[340692924,1729689039484,-2.5600124,0.00050674,120]
[340692925,1729689039789,-332.08,0.00050674,120]
[340692939,1729689042600,-1301.36,0.00048771,10]
[340692940,1729689042611,-665.3599876,0.00050674,120]
[340692941,1729689042623,-150.93,0.00050771,120]
[340692942,1729689042632,-243.46,0.00050801,2]
[340692943,1729689042642,-1956.0600124,0.00051084,15]
[340692945,1729689042886,-8462.30798788,0.00051084,15]
[340692946,1729689042901,-428.51296875,0.00051084,15]
[340692948,1729689042932,-8636.86157122,0.00051084,15]
[340692949,1729689042942,-1042.74279854,0.00051281,30]
[340692950,1729689042951,-606.79,0.000513,120]
[340692951,1729689042961,-606.79,0.00051343,120]
[340692952,1729689042971,-606.79,0.00051343,120]
[340692954,1729689043198,-606.79,0.00051343,120]
[340692955,1729689043213,-31398.0265,0.000514,2]
[340692956,1729689043222,-169.56,0.00051405,120]
[340692957,1729689043232,-187.77086445,0.0005154,120]
[340692958,1729689043241,-1000.0,0.000517,18]
[340692959,1729689043253,-2000.0,0.000518,18]
[340692960,1729689043263,-835.3785,0.00051854,2]
[340692961,1729689043272,-2061.1445,0.00051854,2]
[340692962,1729689043282,-241.46903097,0.00051854,2]
[340692968,1729689045450,-606.79,0.00050521,30]
[340692969,1729689045460,-116.59596903,0.00051854,2]
[340692970,1729689045470,-3556.6649,0.00051854,2]
[340692971,1729689045479,-410.87795107,0.00051854,28]
[340692972,1729689045489,-3000.0,0.000519,18]
[340692973,1729689045498,-500.0,0.00051943,120]
[340692974,1729689045508,-500.0,0.00051943,120]
[340692975,1729689045517,-209.00390073,0.00051943,120]
[340692976,1729689045527,-4768.21692321,0.00051944,11]
[340692977,1729689045563,-22859.60718179,0.00051944,11]
[340692978,1729689045573,-701.43056242,0.0005195,24]
[340692979,1729689045582,-7500.0,0.00051954,120]
[340692980,1729689045592,-183.57475269,0.00051954,46]
[340692981,1729689045602,-9868.99177606,0.00052,5]
[340692982,1729689045612,-150.99,0.00052034,120]
[340692983,1729689045625,-150.99,0.00052034,120]
[340692984,1729689045634,-150.99,0.00052034,120]
[340692985,1729689045644,-168.75603812,0.00052034,2]
[340692986,1729689045655,-6906.95602624,0.00052043,11]
[340692987,1729689045665,-500.0,0.00052043,31]
[340692988,1729689045674,-493.44149892,0.00052043,31]
[340692989,1729689045684,-26435.07350265,0.00052044,11]
[340692990,1729689045698,-54444.4769504,0.00052044,11]
[340692991,1729689045829,-810.663164,0.0005,120]
[340692993,1729689045869,-440.85017263,0.0005,120]
[340692994,1729689189324,165.68,0.000458,2]
[340692995,1729689193602,156.37,0.00015342,2]
[340692996,1729689208473,300.0,0.00046,120]
[340692997,1729689218196,300.0,0.00046,120]
[340692998,1729689233069,350.0,0.00046,120]
[340693000,1729689654915,600.0,0.00045,120]
[340693001,1729689660809,600.0,0.00045,120]
[340693002,1729689664648,600.0,0.00045,120]
[340693003,1729689669394,600.0,0.00045,120]
[340693004,1729689674403,600.0,0.00045,120]
[340693005,1729689679263,600.0,0.00045,120]
[340693006,1729689682627,581.35883341,0.00045,120]
[340693007,1729689830082,200.0,0.0004,30]
[340693008,1729689845716,200.0,0.0004,30]
[340693009,1729689861491,300.0,0.0004,30]
[340693010,1729689894896,1500.0,0.0004,30]
[340693011,1729689937632,295.77,0.0004,30]
[340693013,1729690035261,500.0,0.00046,2]
[340693014,1729690055694,1550.82116659,0.00024,30]
[340693015,1729690055723,37.33036416,0.00024,30]
[340693016,1729690101988,5645.86423654,0.0002,2]
[340693035,1729690232354,-219.11,0.00048263,2]
[340693036,1729690232366,-150.0,0.000488,76]
[340693037,1729690232379,-215.576022,0.000488,111]
[340693038,1729690232390,-175.634,0.00049029,85]
[340693039,1729690232405,-1239.279978,0.00049029,85]
[340693053,1729690237963,-1058.634022,0.00049029,85]
[340693054,1729690237973,-4346.48926214,0.00049029,2]
[340693055,1729690237983,-2328.71142499,0.00049235,2]
[340693056,1729690237994,-753.1,0.0004949,10]
[340693057,1729690238004,-958.95,0.0004949,10]
[340693058,1729690238014,-5781.48795966,0.000495,120]
[340693059,1729690238026,-40903.36089979,0.000495,120]
[340693060,1729690238038,-10653.60571059,0.000495,120]
[340693061,1729690238050,-12114.35125495,0.000495,120]
[340693062,1729690238062,-765.60647407,0.000495,120]
[340693063,1729690238073,-1153.5578011,0.000495,120]
[340693064,1729690238085,-2503.38806905,0.000495,120]
[340693065,1729690238096,-3500.0,0.000495,120]
[340693066,1729690238107,-297.97689013,0.000495,120]
[340693067,1729690238182,-1994.12487587,0.000495,120]
[340693068,1729690238202,-101016.54006479,0.000495,120]
[340693069,1729690238212,-700.0,0.000498,18]
[340693070,1729690238224,-15797.31583337,0.0004989,15]
[340693071,1729690238233,-1552.12,0.0004989,30]
[340693072,1729690238243,-359.51820723,0.00049899,28]
[340693073,1729690238253,-7500.0,0.000499,120]
[340693074,1729690238262,-1400.0,0.000499,18]
[340693075,1729690238272,-183.57475266,0.000499,38]
[340693076,1729690238281,-250.0,0.00049921,120]
[340693077,1729690238291,-683.42,0.0004999,2]
[340693078,1729690238300,-31332.40368096,0.0004999,10]
[340693083,1729690239680,-281.3614,0.0004949,10]
[340693084,1729690239806,-473.51573856,0.0004949,10]
[340693085,1729690239820,-44.25286144,0.0004949,10]
[340693086,1729690239829,-208.41229056,0.0004999,10]
[340693087,1729690239841,-997.888,0.0004999,10]
[340693088,1729690239872,-485.18,0.0004999,10]
[340693089,1729690239883,-267.15097201,0.0004999,10]
[340693090,1729690239894,-657.0,0.0004999,10]
[340693091,1729690239978,-5743.41415763,0.0004999,10]
[340693092,1729690239988,-2736.17536966,0.0004999,10]
[340693099,1729690242859,-3369.02984008,0.0004999,10]
[340693100,1729690242917,-683.42308022,0.0004999,10]
[340693101,1729690243052,-702.13303706,0.0004999,10]
[340693128,1729690245659,-2006.404284,0.0004999,10]
[340693129,1729690245884,-28002.04529561,0.0004999,10]
[340693130,1729690245903,-5184.4721781,0.0004999,10]
[340693131,1729690245914,-815.72982737,0.0004999,10]
[340693132,1729690245944,-3325.65,0.0004999,10]
[340693133,1729690245966,-78897.63744937,0.0004999,10]
[340693135,1729690288986,150.0,0.000458,2]
[340693136,1729690297321,-654.66852486,0.0004989,22]
[340693137,1729690297346,-677.35,0.0004989,2]
[340693138,1729690297371,-7500.0,0.000499,120]
[340693139,1729690297395,-665.94,0.0004998,10]
[340693140,1729690297420,-161.0385042,0.00049989,120]
[340693141,1729690297447,-341.00297094,0.0004999,10]
[340693142,1729690298950,-3396.34256661,0.00049989,2]
[340693143,1729690298976,-6603.65743339,0.0004999,10]
[340693144,1729690299756,-10000.0,0.0004999,10]
[340693145,1729690300635,-702.13,0.00049,120]
[340693146,1729690300664,-9297.87,0.0004999,10]
[340693147,1729690301495,-10000.0,0.0004999,10]
[340693148,1729690302483,-10000.0,0.0004999,10]
[340693149,1729690303361,-8840.37001204,0.0004999,10]
[340693150,1729690303389,-1159.62998796,0.0004999,10]
[340693151,1729690304250,-10000.0,0.0004999,10]
[340693152,1729690305186,-10000.0,0.0004999,10]
[340693153,1729690306765,-10000.0,0.0004999,10]
[340693154,1729690307824,-10000.0,0.0004999,10]
[340693155,1729690308844,-10000.0,0.0004999,10]
[340693156,1729690310007,-10000.0,0.0004999,10]
[340693157,1729690314084,-747.6946232,0.000499,2]
[340693158,1729690314111,-9252.3053768,0.0004999,10]
[340693159,1729690382633,200.0,0.00023,2]
[340693160,1729690394542,3966.8053993,0.00046,120]
[340693161,1729690459830,1336.47,0.00045,120]
[340693162,1729690465750,5000.0,0.00045,120]
[340693163,1729690471057,5000.0,0.00045,120]
[340693164,1729690523098,157.69,0.00015342,2]
[340693165,1729690543814,501.300044,0.0004,32]
[340693166,1729690600904,5175.0,0.00045,120]
[340693167,1729690644711,-322.41,0.00047076,2]
[340693168,1729690648134,-261.984,0.0004852,2]
[340693169,1729690648159,-150.0,0.000488,76]
[340693170,1729690648184,-1006.6,0.000488,111]
[340693171,1729690648209,-250.0,0.00048802,120]
[340693172,1729690648234,-250.0,0.0004886,120]
[340693173,1729690648259,-150.0,0.0004893,2]
[340693174,1729690648285,-289.47,0.0004893,2]
[340693175,1729690705766,7641.946,0.00048846,2]
[340693176,1729690893103,1000.0,0.00048,2]
[340693177,1729690896179,1000.0,0.00048,2]
[340693178,1729690897645,1000.0,0.00048,2]
[340693179,1729690899489,1000.0,0.00048,2]
[340693180,1729690902261,1000.0,0.00048,2]
[340693181,1729690950758,4677.59,0.0004501,120]
[340693182,1729690950781,10000.0,0.0004501,120]
[340693183,1729690950804,10000.0,0.0004501,120]
[340693184,1729690950826,1123246.74699621,0.0004501,120]
[340693185,1729691033611,158.67,0.00015342,2]
[340693186,1729691246406,500.0,0.0004501,120]
[340693190,1729691398160,151.0,0.000162,2]
[340693191,1729691407039,606.79,0.00017945,120]
[340693198,1729691431860,-306.28,0.00046606,2]
[340693199,1729691431871,-1000.0,0.00048152,2]
[340693200,1729691431881,-675.83,0.00048222,2]
[340693201,1729691431890,-200.0,0.00048322,2]
[340693202,1729691431900,-21218.37711,0.00048349,2]
[340693203,1729691431946,-654.17354977,0.00048349,2]
[340693204,1729691432032,-634.12,0.00048349,2]
[340693205,1729691432043,-258.93,0.00048349,2]
[340693206,1729691432055,-355.71601402,0.00048349,2]
[340693207,1729691432067,-768.68332621,0.00048349,2]
[340693208,1729691432078,-152.74,0.00048365,2]
[340693209,1729691432087,-250.0,0.00048374,120]
[340693210,1729691432097,-460.90885615,0.00048413,2]
[340693211,1729691432132,-407.99114385,0.00048413,2]
[340693212,1729691432143,-277.89,0.00048513,120]
[340693213,1729691432153,-1245.0,0.0004852,2]
[340693214,1729691432162,-273.303,0.0004852,2]
[340693215,1729691432171,-812.0,0.0004852,2]
[340693216,1729691432181,-936.0,0.0004852,2]
[340693217,1729691432191,-555.0,0.0004852,2]
[340693218,1729691432200,-250.0,0.00048534,120]
[340693219,1729691432210,-178.62,0.00048658,120]
[340693220,1729691432221,-606.48,0.00048686,2]
[340693221,1729691432235,-173.46,0.00048774,2]
[340693222,1729691432246,-306.28,0.0004887,2]
[340693223,1729691432256,-606.79,0.0004889,120]
[340693224,1729691432266,-150.93,0.00048964,120]
[340693225,1729691432275,-197.63,0.00049124,120]
[340693226,1729691432285,-1500.0,0.00049182,14]
[340693227,1729691432299,-1500.0,0.00049226,14]
[340693228,1729691432308,-1869.16,0.00049387,86]
[340693229,1729691432318,-100000.0,0.000494,2]
[340693230,1729691432330,-1000.0,0.000494,2]
[340693231,1729691432339,-176.0,0.00049443,120]
[340693232,1729691432348,-1500.0,0.00049467,14]
[340693233,1729691432358,-48784.98781586,0.000495,120]
[340693234,1729691433015,-360.33806846,0.000495,120]
[340693235,1729691433121,-2374.51,0.000495,120]
[340693236,1729691433133,-13263.55,0.000495,120]
[340693247,1729691437903,-554.95,0.0004939,10]
[340693248,1729691437914,-756.50375638,0.000495,120]
[340693249,1729691437976,-23280.27233098,0.000495,120]
[340693250,1729691437989,-67.83802833,0.000495,120]
[340693251,1729691437999,-6183.7012047,0.000495,120]
[340693252,1729691438010,-642.02071944,0.000495,120]
[340693253,1729691438021,-634.78418018,0.000495,120]
[340693254,1729691438032,-273.69911658,0.000495,120]
[340693255,1729691438043,-1202.40726187,0.000495,120]
[340693256,1729691438066,-268.54000002,0.000495,120]
[340693257,1729691438077,-279.8900001,0.000495,120]
[340693258,1729691438088,-339.055,0.000495,120]
[340693259,1729691438302,-45113.0252794,0.000495,120]
[340693260,1729691438313,-32008.87723771,0.000495,120]
[340693261,1729691438323,-800.0,0.000496,18]
[340693262,1729691438334,-1500.0,0.00049634,14]
[340693263,1729691438345,-1500.0,0.00049645,14]
[340693264,1729691438356,-1070.98,0.00049645,120]
[340693265,1729691438366,-1500.0,0.0004966,14]
[340693266,1729691438376,-1500.0,0.00049662,14]
[340693267,1729691438386,-1500.0,0.00049682,14]
[340693268,1729691438395,-415.60992641,0.00049698,28]
[340693269,1729691438405,-697.84831508,0.00049699,2]
[340693270,1729691438414,-611.02395648,0.000497,21]
[340693271,1729691438424,-1600.0,0.000497,18]
[340693272,1729691438434,-536.30941049,0.00049729,14]
[340693273,1729691438443,-500.0,0.00049773,2]
[340693274,1729691438453,-63283.6589609,0.00049789,10]
[340693275,1729691438463,-151.3,0.00049789,120]
[340693276,1729691438472,-151.3,0.00049789,120]
[340693277,1729691438484,-500.0,0.00049789,2]
[340693278,1729691438493,-37970.1953765,0.0004979,10]